fUST/lending_fUST_20240327
["ID","MTS","AMOUNT","RATE_DAILY","PERIOD"]
[320700065,1711511444522,-500.0,0.00019178,2]
[320700066,1711511444532,-1037.24,0.00019178,2]
[320700067,1711511444542,-24954.82,0.00019178,2]
[320700068,1711511444552,-2206.79,0.00019178,2]
[320700069,1711511444562,-996.62,0.00019178,2]
[320700070,1711511444572,-500.82718543,0.00019178,2]
[320700071,1711511444582,-500.0,0.00019178,2]
[320700072,1711511444594,-500.0,0.00019178,2]
[320700073,1711511444603,-500.0,0.00019178,2]
[320700074,1711511444613,-500.13958772,0.00019178,2]
[320700075,1711511444624,-182.21833569,0.00019178,2]
[320700076,1711511444636,-1926.84,0.00019178,2]
[320700077,1711511444645,-500.0,0.00019178,2]
[320700078,1711511444654,-1612.84,0.00019178,2]
[320700079,1711511444663,-179.27303857,0.00019178,2]
[320700080,1711511444675,-500.0,0.00019178,2]
[320700081,1711511444684,-500.0,0.00019178,2]
[320700082,1711511444695,-500.0,0.00019178,2]
[320700083,1711511444704,-500.0,0.00019178,2]
[320700084,1711511444712,-500.0,0.00019178,2]
[320700085,1711511444721,-22679.78,0.00019178,2]
[320700086,1711511444731,-500.0,0.00019178,2]
[320700087,1711511444741,-500.0,0.00019178,2]
[320700088,1711511444751,-4414.37,0.00019178,2]
[320700089,1711511444760,-500.0,0.00019178,2]
[320700090,1711511444769,-500.0,0.00019178,2]
[320700091,1711511444779,-5314.21,0.00019178,2]
[320700092,1711511444789,-509.03910775,0.00019178,2]
[320700093,1711511444798,-500.0,0.00019178,2]
[320700094,1711511444809,-500.0,0.00019178,2]
[320700095,1711511444818,-702.53,0.00019178,2]
[320700096,1711511444827,-899.97,0.00019178,2]
[320700097,1711511444836,-500.0,0.00019178,2]
[320700098,1711511444845,-500.87119595,0.00019178,2]
[320700099,1711511444854,-1650.94,0.00019178,2]
[320700100,1711511444865,-3861.03,0.00019178,2]
[320700101,1711511444875,-500.38968151,0.00019178,2]
[320700102,1711511444885,-500.0,0.00019178,2]
[320700103,1711511444894,-500.0,0.00019178,2]
[320700104,1711511444904,-500.81711251,0.00019178,2]
[320700105,1711511444915,-500.0,0.00019178,2]
[320700106,1711511444925,-160.70224999,0.00019178,2]
[320700107,1711511444935,-1047.54,0.00019178,2]
[320700108,1711511444944,-4615.45,0.00019178,2]
[320700109,1711511444953,-705.56,0.00019178,2]
[320700110,1711511444963,-622.05,0.00019178,2]
[320700111,1711511444973,-500.15666027,0.00019178,2]
[320700112,1711511444984,-3230.58,0.00019178,2]
[320700113,1711511444993,-500.0,0.00019178,2]
[320700114,1711511445002,-639.63,0.00019178,2]
[320700115,1711511445012,-2062.01,0.00019178,2]
[320700116,1711511445022,-568.48,0.00019178,2]
[320700117,1711511445031,-500.0,0.00019178,2]
[320700118,1711511445040,-500.0,0.00019178,2]
[320700119,1711511445049,-500.0,0.00019178,2]
[320700120,1711511445060,-500.11158404,0.00019178,2]
[320700121,1711511445069,-500.0,0.00019178,2]
[320700122,1711511445078,-1647.33,0.00019178,2]
[320700123,1711511445087,-8079.69,0.00019178,2]
[320700124,1711511445096,-501.53523071,0.00019178,2]
[320700125,1711511445106,-500.0,0.00019178,2]
[320700126,1711511445115,-500.0,0.00019178,2]
[320700127,1711511445125,-449.46207218,0.00019178,2]
[320700128,1711511445134,-175.164356,0.00019178,2]
[320700129,1711511445144,-170.042482,0.00019178,2]
[320700130,1711511445154,-165.609688,0.00019178,2]
[320700131,1711511445163,-173.8295627,0.00019178,2]
[320700132,1711511445172,-2034.465773,0.00019339,2]
[320700133,1711511445183,-849.919869,0.00019339,2]
[320700134,1711511445192,-150.085,0.0001976,2]
[320700135,1711511445201,-7762.27330439,0.0001988,2]
[320700136,1711511445210,-236.90220631,0.000199,2]
[320700137,1711511445220,-155.72077007,0.0002,2]
[320700138,1711511445230,-156.44012682,0.0002,2]
[320700139,1711511445239,-239.61530325,0.0002,2]
[320700140,1711511445248,-684.30913271,0.0002,2]
[320700141,1711511445257,-153.0197888,0.0002,2]
[320700142,1711511445267,-2000.0,0.00020175,2]
[320700143,1711511445276,-153.0,0.00021233,2]
[320700144,1711511445285,-307.2888307,0.00021233,2]
[320700145,1711511445294,-81.10813043,0.00021677,2]
[320700159,1711511518629,-1000.0,0.00022,20]
[320700160,1711511535801,-2000.0,0.0002199,15]
[320700161,1711511631028,-170.65287075,0.000189,2]
[320700163,1711511657553,-29753.27805314,0.00019176,2]
[320700164,1711511657576,-500.0,0.00019178,2]
[320700165,1711511657599,-500.0,0.00019178,2]
[320700166,1711511657624,-523.71,0.00019178,2]
[320700167,1711511657647,-500.0,0.00019178,2]
[320700168,1711511657671,-490.87527228,0.00019178,2]
[320700169,1711511657694,-500.0,0.00019178,2]
[320700170,1711511657718,-500.0,0.00019178,2]
[320700171,1711511657741,-955.09,0.00019178,2]
[320700172,1711511657764,-631.68,0.00019178,2]
[320700173,1711511657789,-4097.77,0.00019178,2]
[320700174,1711511657811,-500.0,0.00019178,2]
[320700175,1711511657835,-500.0,0.00019178,2]
[320700176,1711511657858,-500.0,0.00019178,2]
[320700177,1711511657883,-500.0,0.00019178,2]
[320700178,1711511657907,-994.02,0.00019178,2]
[320700179,1711511657931,-1545.64,0.00019178,2]
[320700180,1711511657954,-500.0,0.00019178,2]
[320700181,1711511657977,-500.0,0.00019178,2]
[320700182,1711511658000,-500.0,0.00019178,2]
[320700183,1711511658026,-2114.84,0.00019178,2]
[320700184,1711511658054,-500.0,0.00019178,2]
[320700185,1711511658077,-500.0,0.00019178,2]
[320700186,1711511658101,-4230.44,0.00019178,2]
[320700187,1711511658126,-500.0,0.00019178,2]
[320700188,1711511658149,-500.0,0.00019178,2]
[320700189,1711511658172,-23915.04,0.00019178,2]
[320700190,1711511658197,-500.0,0.00019178,2]
[320700191,1711511658220,-1582.15,0.00019178,2]
[320700192,1711511658242,-545.63410276,0.00019178,2]
[320700193,1711511658265,-862.47,0.00019178,2]
[320700194,1711511658288,-500.0,0.00019178,2]
[320700195,1711511658311,-500.0,0.00019178,2]
[320700196,1711511658333,-18086.70970107,0.00019178,2]
[320700201,1711512372502,9536.331664,0.00019177,120]
[320700337,1711512643368,-1454.16,0.00019177,2]
[320700338,1711512643426,-1869.79851634,0.00019177,2]
[320700339,1711512643439,-26429.3195368,0.00019177,2]
[320700340,1711512643448,-500.0,0.00019178,2]
[320700341,1711512643458,-500.0,0.00019178,2]
[320700342,1711512643468,-1686.35,0.00019178,2]
[320700343,1711512643477,-500.0,0.00019178,2]
[320700344,1711512643486,-500.59096157,0.00019178,2]
[320700346,1711512643495,-500.90303986,0.00019178,2]
[320700348,1711512643504,-500.0,0.00019178,2]
[320700350,1711512643513,-500.0,0.00019178,2]
[320700352,1711512643522,-500.0,0.00019178,2]
[320700354,1711512643531,-500.94666399,0.00019178,2]
[320700356,1711512643541,-500.0,0.00019178,2]
[320700358,1711512643551,-501.14964162,0.00019178,2]
[320700360,1711512643560,-500.0,0.00019178,2]
[320700363,1711512643582,-744.99,0.00019178,2]
[320700365,1711512643593,-500.0,0.00019178,2]
[320700367,1711512643603,-500.0,0.00019178,2]
[320700369,1711512643614,-500.0,0.00019178,2]
[320700370,1711512643623,-500.0,0.00019178,2]
[320700371,1711512643633,-500.0,0.00019178,2]
[320700373,1711512643643,-500.0,0.00019178,2]
[320700375,1711512643652,-500.0,0.00019178,2]
[320700377,1711512643662,-500.0,0.00019178,2]
[320700379,1711512643671,-500.0,0.00019178,2]
[320700381,1711512643681,-501.09292844,0.00019178,2]
[320700383,1711512643692,-500.0,0.00019178,2]
[320700384,1711512643701,-500.0,0.00019178,2]
[320700385,1711512643711,-500.0,0.00019178,2]
[320700386,1711512643721,-166.60098048,0.00019178,2]
[320700387,1711512643731,-502.25808576,0.00019178,2]
[320700388,1711512643741,-500.0,0.00019178,2]
[320700389,1711512643752,-500.0,0.00019178,2]
[320700390,1711512643763,-500.0,0.00019178,2]
[320700391,1711512643773,-500.0,0.00019178,2]
[320700392,1711512643783,-500.0,0.00019178,2]
[320700393,1711512643793,-500.0,0.00019178,2]
[320700394,1711512643804,-500.0,0.00019178,2]
[320700395,1711512643813,-500.0,0.00019178,2]
[320700396,1711512643823,-2096.44,0.00019178,2]
[320700397,1711512643833,-500.0,0.00019178,2]
[320700398,1711512643842,-500.0,0.00019178,2]
[320700399,1711512643852,-500.0,0.00019178,2]
[320700400,1711512643861,-500.0,0.00019178,2]
[320700401,1711512643871,-500.0,0.00019178,2]
[320700402,1711512643881,-501.14336706,0.00019178,2]
[320700403,1711512643892,-305.50304525,0.00019178,2]
[320700404,1711512643902,-500.0,0.00019178,2]
[320700405,1711512643913,-500.0,0.00019178,2]
[320700406,1711512643924,-500.0,0.00019178,2]
[320700407,1711512643934,-500.0,0.00019178,2]
[320700408,1711512643944,-500.0,0.00019178,2]
[320700409,1711512643954,-500.0,0.00019178,2]
[320700410,1711512643964,-509.03910775,0.00019178,2]
[320700411,1711512643974,-500.87119595,0.00019178,2]
[320700412,1711512643984,-500.0,0.00019178,2]
[320700413,1711512643993,-500.0,0.00019178,2]
[320700414,1711512644002,-500.0,0.00019178,2]
[320700415,1711512644013,-500.81711251,0.00019178,2]
[320700416,1711512644022,-500.0,0.00019178,2]
[320700417,1711512644031,-500.0,0.00019178,2]
[320700418,1711512644041,-500.64554874,0.00019178,2]
[320700419,1711512644050,-705.56,0.00019178,2]
[320700420,1711512644059,-500.0,0.00019178,2]
[320700421,1711512644068,-500.0,0.00019178,2]
[320700422,1711512644077,-500.0,0.00019178,2]
[320700423,1711512644087,-500.0,0.00019178,2]
[320700424,1711512644095,-500.0,0.00019178,2]
[320700425,1711512644105,-500.74404679,0.00019178,2]
[320700426,1711512644114,-500.0,0.00019178,2]
[320700427,1711512644123,-529.45,0.00019178,2]
[320700428,1711512644133,-500.0,0.00019178,2]
[320700429,1711512644143,-500.0,0.00019178,2]
[320700430,1711512644152,-500.0,0.00019178,2]
[320700431,1711512644162,-449.46207218,0.00019178,2]
[320700432,1711512644171,-278.93130905,0.00019178,2]
[320700433,1711512644181,-842.47,0.00019178,2]
[320700434,1711512644191,-524.65,0.00019178,2]
[320700435,1711512644201,-500.0,0.00019178,2]
[320700436,1711512644210,-8079.69,0.00019178,2]
[320700437,1711512644221,-500.0,0.00019178,2]
[320700438,1711512644231,-500.0,0.00019178,2]
[320700439,1711512644241,-1160.66,0.00019178,2]
[320700440,1711512644250,-723.3,0.00019178,2]
[320700441,1711512644260,-500.85564148,0.00019178,2]
[320700442,1711512644270,-500.0,0.00019178,2]
[320700443,1711512644279,-501.03826764,0.00019178,2]
[320700444,1711512644291,-572.33428495,0.00019178,2]
[320700445,1711512644301,-507.72,0.00019178,2]
[320700446,1711512644311,-558.38,0.00019178,2]
[320700447,1711512644322,-502.00282366,0.00019178,2]
[320700448,1711512644331,-501.34651295,0.00019178,2]
[320700449,1711512644341,-500.0,0.00019178,2]
[320700450,1711512644354,-500.0,0.00019178,2]
[320700451,1711512644364,-500.0,0.00019178,2]
[320700452,1711512644375,-500.0,0.00019178,2]
[320700453,1711512644384,-500.0,0.00019178,2]
[320700454,1711512644394,-500.0,0.00019178,2]
[320700455,1711512644405,-500.13958772,0.00019178,2]
[320700456,1711512644415,-527.35,0.00019178,2]
[320700457,1711512644425,-500.0,0.00019178,2]
[320700458,1711512644435,-500.0,0.00019178,2]
[320700459,1711512644446,-2089.94,0.00019178,2]
[320700460,1711512644456,-4105.2,0.00019178,2]
[320700461,1711512644466,-995.83,0.00019178,2]
[320700462,1711512644476,-500.0,0.00019178,2]
[320700463,1711512644485,-500.0,0.00019178,2]
[320700464,1711512644495,-500.0,0.00019178,2]
[320700465,1711512644505,-2118.67,0.00019178,2]
[320700466,1711512644515,-956.82,0.00019178,2]
[320700467,1711512644525,-500.0,0.00019178,2]
[320700468,1711512644534,-4238.1,0.00019178,2]
[320700469,1711512644543,-500.0,0.00019178,2]
[320700470,1711512644553,-182.21833569,0.00019178,2]
[320700471,1711512644563,-500.0,0.00019178,2]
[320700472,1711512644572,-500.13887343,0.00019178,2]
[320700473,1711512644582,-1548.44,0.00019178,2]
[320700474,1711512644591,-500.0,0.00019178,2]
[320700475,1711512644602,-500.0,0.00019178,2]
[320700476,1711512644614,-500.0,0.00019178,2]
[320700477,1711512644623,-1926.84,0.00019178,2]
[320700478,1711512644633,-500.0,0.00019178,2]
[320700479,1711512644642,-500.76792345,0.00019178,2]
[320700480,1711512644652,-500.0,0.00019178,2]
[320700481,1711512644661,-23515.61,0.00019178,2]
[320700482,1711512644670,-864.03,0.00019178,2]
[320700483,1711512644680,-500.08515452,0.00019178,2]
[320700484,1711512644689,-500.0,0.00019178,2]
[320700485,1711512644699,-684.76,0.00019178,2]
[320700486,1711512644708,-702.53,0.00019178,2]
[320700487,1711512644719,-500.0,0.00019178,2]
[320700488,1711512644728,-5314.21,0.00019178,2]
[320700489,1711512644738,-3861.03,0.00019178,2]
[320700490,1711512644747,-500.0,0.00019178,2]
[320700491,1711512644756,-500.0,0.00019178,2]
[320700492,1711512644766,-1585.01,0.00019178,2]
[320700493,1711512644775,-500.0,0.00019178,2]
[320700494,1711512644784,-500.0,0.00019178,2]
[320700495,1711512644795,-500.38968151,0.00019178,2]
[320700496,1711512644805,-500.0,0.00019178,2]
[320700497,1711512644815,-500.0,0.00019178,2]
[320700498,1711512644824,-500.0,0.00019178,2]
[320700499,1711512644834,-500.0,0.00019178,2]
[320700500,1711512644843,-500.15666027,0.00019178,2]
[320700501,1711512644852,-4615.45,0.00019178,2]
[320700502,1711512644861,-502.52066474,0.00019178,2]
[320700503,1711512644871,-160.70224999,0.00019178,2]
[320700504,1711512644881,-3230.58,0.00019178,2]
[320700505,1711512644890,-1047.54,0.00019178,2]
[320700506,1711512644900,-1647.33,0.00019178,2]
[320700507,1711512644909,-500.0,0.00019178,2]
[320700508,1711512644919,-622.05,0.00019178,2]
[320700509,1711512644929,-568.48,0.00019178,2]
[320700510,1711512644939,-500.11158404,0.00019178,2]
[320700511,1711512644949,-2062.01,0.00019178,2]
[320700512,1711512644958,-500.0,0.00019178,2]
[320700513,1711512644969,-639.63,0.00019178,2]
[320700514,1711512644979,-500.0,0.00019178,2]
[320700515,1711512644988,-500.0,0.00019178,2]
[320700516,1711512644998,-501.53523071,0.00019178,2]
[320700517,1711512645008,-167.658928,0.00019178,2]
[320700518,1711512645018,-2000.0,0.000195,2]
[320700519,1711512645029,-7762.27330439,0.0001988,2]
[320700520,1711512645039,-236.90220631,0.000199,2]
[320700521,1711512645049,-33339.1235004,0.0001998,2]
[320700522,1711512645060,-156.44012682,0.0002,2]
[320700523,1711512645069,-684.30913271,0.0002,2]
[320700524,1711512645079,-155.72077007,0.0002,2]
[320700525,1711512645088,-239.61530325,0.0002,2]
[320700526,1711512645098,-2000.0,0.00021108,2]
[320700527,1711512645108,-336.01862667,0.00021916,2]
[320700528,1711512645117,-23958.36,0.00021916,2]
[320700529,1711512645127,-500.0,0.00021917,2]
[320700530,1711512645137,-500.0,0.00021917,2]
[320700531,1711512645146,-1686.35,0.00021917,2]
[320700532,1711512645155,-500.0,0.00021917,2]
[320700533,1711512645165,-492.67291977,0.00021917,2]
[320700534,1711512645175,-500.0,0.00021917,2]
[320700535,1711512645185,-500.0,0.00021917,2]
[320700536,1711512645194,-500.0,0.00021917,2]
[320700537,1711512645204,-744.99,0.00021917,2]
[320700538,1711512645214,-500.0,0.00021917,2]
[320700539,1711512645223,-500.0,0.00021917,2]
[320700540,1711512645233,-518.15236353,0.00021917,2]
[320700541,1711512645243,-500.0,0.00021917,2]
[320700542,1711512645253,-502.98104151,0.00021917,2]
[320700543,1711512645262,-391.32717292,0.00021917,2]
[320700544,1711512645272,-500.0,0.00021917,2]
[320700545,1711512645282,-500.0,0.00021917,2]
[320700546,1711512645292,-500.0,0.00021917,2]
[320700547,1711512645301,-500.0,0.00021917,2]
[320700548,1711512645310,-500.0,0.00021917,2]
[320700549,1711512645321,-500.0,0.00021917,2]
[320700550,1711512645332,-500.0,0.00021917,2]
[320700551,1711512645343,-500.0,0.00021917,2]
[320700552,1711512645353,-500.0,0.00021917,2]
[320700553,1711512645363,-500.0,0.00021917,2]
[320700554,1711512645373,-500.0,0.00021917,2]
[320700555,1711512645383,-500.0,0.00021917,2]
[320700556,1711512645393,-479.46753738,0.00021917,2]
[320700557,1711512645402,-500.0,0.00021917,2]
[320700558,1711512645413,-2096.44,0.00021917,2]
[320700559,1711512645423,-500.0,0.00021917,2]
[320700560,1711512645432,-501.519856,0.00021917,2]
[320700561,1711512645442,-500.0,0.00021917,2]
[320700562,1711512645451,-500.0,0.00021917,2]
[320700563,1711512645460,-500.0,0.00021917,2]
[320700564,1711512645470,-500.0,0.00021917,2]
[320700565,1711512645481,-500.0,0.00021917,2]
[320700566,1711512645491,-500.0,0.00021917,2]
[320700567,1711512645500,-500.0,0.00021917,2]
[320700568,1711512645510,-500.0,0.00021917,2]
[320700569,1711512645519,-500.0,0.00021917,2]
[320700570,1711512645529,-500.0,0.00021917,2]
[320700571,1711512645539,-500.0,0.00021917,2]
[320700572,1711512645548,-500.32134479,0.00021917,2]
[320700573,1711512645557,-500.0,0.00021917,2]
[320700574,1711512645566,-501.08429482,0.00021917,2]
[320700577,1711512645693,-705.56,0.00021917,2]
[320700578,1711512645705,-500.0,0.00021917,2]
[320700579,1711512645716,-500.0,0.00021917,2]
[320700580,1711512645726,-500.0,0.00021917,2]
[320700581,1711512645735,-500.0,0.00021917,2]
[320700582,1711512645747,-500.0,0.00021917,2]
[320700583,1711512645756,-500.0,0.00021917,2]
[320700584,1711512645765,-529.45,0.00021917,2]
[320700585,1711512645775,-500.0,0.00021917,2]
[320700586,1711512645784,-500.0,0.00021917,2]
[320700587,1711512645794,-842.47,0.00021917,2]
[320700588,1711512645804,-524.65,0.00021917,2]
[320700589,1711512645813,-215.0,0.00021917,2]
[320700590,1711512645823,-5853.02560638,0.00021917,2]
[320700595,1711512646307,-2226.66439362,0.00021917,2]
[320700596,1711512646318,-500.0,0.00021917,2]
[320700597,1711512646331,-500.0,0.00021917,2]
[320700598,1711512646341,-1160.66,0.00021917,2]
[320700599,1711512646352,-723.3,0.00021917,2]
[320700600,1711512646363,-500.85269033,0.00021917,2]
[320700601,1711512646373,-203.12648395,0.00021917,2]
[320700874,1711515032583,-29753.27805314,0.00019177,2]
[320700875,1711515032593,-500.0,0.00019178,2]
[320700877,1711515032603,-500.0,0.00019178,2]
[320700879,1711515032612,-500.0,0.00019178,2]
[320700881,1711515032624,-500.0,0.00019178,2]
[320700883,1711515032634,-500.0,0.00019178,2]
[320700885,1711515032642,-500.0,0.00019178,2]
[320700886,1711515032652,-500.0,0.00019178,2]
[320700888,1711515032661,-500.0,0.00019178,2]
[320700890,1711515032673,-500.0,0.00019178,2]
[320700891,1711515032682,-500.0,0.00019178,2]
[320700893,1711515032691,-500.0,0.00019178,2]
[320700894,1711515032701,-656.23,0.00019178,2]
[320700895,1711515032710,-500.0,0.00019178,2]
[320700896,1711515032720,-500.0,0.00019178,2]
[320700897,1711515032729,-596.13,0.00019178,2]
[320700898,1711515032738,-500.0,0.00019178,2]
[320700899,1711515032747,-500.0,0.00019178,2]
[320700900,1711515032757,-612.98,0.00019178,2]
[320700901,1711515032767,-500.0,0.00019178,2]
[320700902,1711515032777,-500.0,0.00019178,2]
[320700904,1711515032786,-500.0,0.00019178,2]
[320700906,1711515032796,-500.0,0.00019178,2]
[320700907,1711515032805,-500.0,0.00019178,2]
[320700908,1711515032814,-500.0,0.00019178,2]
[320700909,1711515032823,-500.0,0.00019178,2]
[320700911,1711515032832,-1619.14,0.00019178,2]
[320700912,1711515032842,-500.0,0.00019178,2]
[320700914,1711515032852,-500.0,0.00019178,2]
[320700915,1711515032862,-500.0,0.00019178,2]
[320700917,1711515032872,-500.0,0.00019178,2]
[320700918,1711515032883,-520.50265724,0.00019178,2]
[320700919,1711515032892,-500.0,0.00019178,2]
[320700920,1711515032901,-500.0,0.00019178,2]
[320700921,1711515032910,-500.0,0.00019178,2]
[320700922,1711515032919,-500.82407724,0.00019178,2]
[320700923,1711515032928,-500.0,0.00019178,2]
[320700924,1711515032938,-500.0,0.00019178,2]
[320700925,1711515032947,-500.70484284,0.00019178,2]
[320700926,1711515032957,-293.46389962,0.00019178,2]
[320700927,1711515032967,-500.10275586,0.00019178,2]
[320700928,1711515032976,-500.0,0.00019178,2]
[320700929,1711515032985,-1921.74,0.00019178,2]
[320700930,1711515032995,-500.76086876,0.00019178,2]
[320700931,1711515033005,-500.0,0.00019178,2]
[320700932,1711515033014,-499.54773135,0.00019178,2]
[320700933,1711515033024,-500.0,0.00019178,2]
[320700934,1711515033033,-500.0,0.00019178,2]
[320700935,1711515033042,-500.0,0.00019178,2]
[320700936,1711515033051,-500.0,0.00019178,2]
[320700937,1711515033060,-500.0,0.00019178,2]
[320700938,1711515033070,-500.0,0.00019178,2]
[320700939,1711515033082,-500.0,0.00019178,2]
[320700940,1711515033092,-500.0,0.00019178,2]
[320700941,1711515033102,-500.0,0.00019178,2]
[320700942,1711515033111,-564.6679384,0.00019178,2]
[320700943,1711515033122,-500.0,0.00019178,2]
[320700944,1711515033132,-500.0,0.00019178,2]
[320700945,1711515033141,-29.11997625,0.00019178,2]
[320700965,1711515038578,-686.18002375,0.00019178,2]
[320700966,1711515038588,-500.0,0.00019178,2]
[320700967,1711515038597,-500.0,0.00019178,2]
[320700968,1711515038606,-500.0,0.00019178,2]
[320700969,1711515038616,-300.81348874,0.00019178,2]
[320701251,1711516237895,-3848.73863417,0.00019177,2]
[320701267,1711516242902,-266.20878481,0.00019177,2]
[320701268,1711516242914,-3129.10839476,0.00019177,2]
[320701614,1711518404756,-1148.78600337,0.00019174,2]
[320701615,1711518404781,-2066.6373675,0.00019175,2]
[320701616,1711518404804,-407.75643446,0.00019175,2]
[320701617,1711518404827,-410.081177,0.00019176,2]
[320701618,1711518404850,-19550.20499243,0.00019177,2]
[320701619,1711518404872,-2165.88202692,0.00019177,2]
[320701620,1711518404894,-163.17032682,0.00019177,2]
[320701621,1711518404916,-500.0,0.00019178,2]
[320701622,1711518404939,-569.74623061,0.00019178,2]
[320701623,1711518404961,-500.76543446,0.00019178,2]
[320701624,1711518404982,-500.0,0.00019178,2]
[320701625,1711518405005,-533.4447878,0.00019178,2]
[320701626,1711518405028,-500.0,0.00019178,2]
[320701627,1711518405052,-500.0,0.00019178,2]
[320701628,1711518405074,-500.0,0.00019178,2]
[320701629,1711518405098,-500.90656125,0.00019178,2]
[320701630,1711518405120,-500.82718543,0.00019178,2]
[320701631,1711518405142,-500.0,0.00019178,2]
[320701632,1711518405165,-500.0,0.00019178,2]
[320701633,1711518405189,-500.0,0.00019178,2]
[320701634,1711518405211,-500.0,0.00019178,2]
[320701635,1711518405234,-179.27303857,0.00019178,2]
[320701636,1711518405255,-500.0,0.00019178,2]
[320701637,1711518405278,-500.0,0.00019178,2]
[320701638,1711518405299,-500.0,0.00019178,2]
[320701639,1711518405320,-500.0,0.00019178,2]
[320701640,1711518405342,-500.0,0.00019178,2]
[320701641,1711518405365,-646.76,0.00019178,2]
[320701642,1711518405386,-478.69902811,0.00019178,2]
[320701643,1711518405408,-576.31513434,0.00019178,2]
[320701644,1711518405430,-500.0,0.00019178,2]
[320701645,1711518405451,-500.0,0.00019178,2]
[320701646,1711518405475,-500.0,0.00019178,2]
[320701647,1711518405497,-500.0,0.00019178,2]
[320701648,1711518405520,-500.0,0.00019178,2]
[320701649,1711518405542,-419.627459,0.00019178,2]
[320701650,1711518405563,-500.0,0.00019178,2]
[320701651,1711518405585,-1116.61,0.00019178,2]
[320701652,1711518405607,-500.0,0.00019178,2]
[320701653,1711518405628,-500.0,0.00019178,2]
[320701654,1711518405650,-510.97381782,0.00019178,2]
[320701655,1711518405672,-500.0,0.00019178,2]
[320701656,1711518405694,-632.34073805,0.00019178,2]
[320701657,1711518405715,-503.21259291,0.00019178,2]
[320701658,1711518405737,-500.0,0.00019178,2]
[320701659,1711518405760,-500.0,0.00019178,2]
[320701660,1711518405783,-695.57,0.00019178,2]
[320701661,1711518405805,-608.82359374,0.00019178,2]
[320701662,1711518405827,-2088.22,0.00019178,2]
[320701663,1711518405849,-500.0,0.00019178,2]
[320701664,1711518405872,-500.0,0.00019178,2]
[320701665,1711518405894,-151.91718049,0.00019178,2]
[320701666,1711518406033,-500.0,0.00019178,2]
[320701667,1711518406056,-500.0,0.00019178,2]
[320701668,1711518406080,-500.0,0.00019178,2]
[320701669,1711518406105,-500.0,0.00019178,2]
[320701670,1711518406130,-500.0,0.00019178,2]
[320701671,1711518406154,-500.0,0.00019178,2]
[320701672,1711518406182,-500.0,0.00019178,2]
[320701673,1711518406205,-1477.76,0.00019178,2]
[320701674,1711518406229,-500.0,0.00019178,2]
[320701675,1711518406254,-673.26,0.00019178,2]
[320701676,1711518406276,-500.0,0.00019178,2]
[320701677,1711518406299,-500.0,0.00019178,2]
[320701678,1711518406323,-660.29,0.00019178,2]
[320701679,1711518406348,-500.0,0.00019178,2]
[320701680,1711518406371,-500.0,0.00019178,2]
[320701681,1711518406395,-500.0,0.00019178,2]
[320701682,1711518406419,-3095.97,0.00019178,2]
[320701683,1711518406444,-1003.9,0.00019178,2]
[320701684,1711518406469,-500.0,0.00019178,2]
[320701685,1711518406495,-571.29,0.00019178,2]
[320701686,1711518406517,-500.0,0.00019178,2]
[320701687,1711518406541,-500.85943922,0.00019178,2]